bitfinex/quotes_SOLUSD_20250520
["timestamp","ask_amount","ask_price","bid_price","bid_amount"]
[1747704674944,19.83251925,168.34,168.3,19.66]
[1747704675149,19.83251925,168.34,168.3,45.66]
[1747704675349,5.94071169,168.33,168.3,45.66]
[1747704675533,19.83251925,168.36,168.32,26.0]
[1747704675735,19.83251925,168.36,168.31,18.79181043]
[1747704675935,25.77111417,168.39,168.34,26.0]
[1747704676131,5.93859492,168.39,168.35,18.933972]
[1747704676441,25.90831925,168.45,168.39,0.28432314]
[1747704677834,5.9368321,168.44,168.39,0.28432314]
[1747704678356,40.61143161,168.44,168.39,0.28432314]
[1747704678655,19.83251925,168.43,168.38,26.0]
[1747704679156,19.83251925,168.43,168.37,18.933972]
[1747704679348,19.83251925,168.42,168.36,19.66]
[1747704679548,19.83251925,168.41,168.36,45.66]
[1747704680056,5.93824228,168.4,168.36,45.66]
[1747704680232,25.77076153,168.4,168.36,26.0]
[1747704680426,19.83251925,168.38,168.31,19.66]
[1747704680744,19.83251925,168.36,168.31,19.66]
[1747704680945,19.83251925,168.35,168.31,19.66]
[1747704681123,19.83251925,168.35,168.28,239.88]
[1747704681326,19.83251925,168.33,168.29,26.0]
[1747704681522,6.3555,168.37,168.3,0.28432314]
[1747704681727,19.83251925,168.38,168.3,0.28432314]
[1747704682060,25.7718196,168.37,168.32,26.0]
[1747704682254,19.83251925,168.34,168.28,17.8]
[1747704682433,19.83251925,168.33,168.28,17.8]
[1747704682747,19.83251925,168.36,168.31,0.28432314]
[1747704682923,5.93930035,168.37,168.31,0.28432314]
[1747704683124,25.7718196,168.37,168.31,0.28432314]
[1747704683563,19.83251925,168.36,168.31,0.14216157]
[1747704683926,19.83251925,168.36,168.31,0.28432314]
[1747704684247,5.93859492,168.39,168.34,18.933972]
[1747704685653,5.93824228,168.4,168.34,18.933972]
[1747704686353,25.77076153,168.4,168.34,18.933972]
[1747704686528,5.93824228,168.4,168.34,18.933972]
[1747704686851,5.93824228,168.4,168.34,36.733972]
[1747704687264,5.93824228,168.4,168.34,72.373972]
[1747704688563,5.9375371,168.42,168.34,72.373972]
[1747704688857,20.78137987,168.42,168.34,72.373972]
[1747704689061,19.83251925,168.41,168.34,72.373972]
[1747704690556,66.61389912,168.42,168.34,72.373972]
[1747704691270,46.78137987,168.42,168.34,72.373972]
[1747704691453,19.83251925,168.41,168.34,72.373972]
[1747704693767,5.93824228,168.4,168.34,72.373972]
[1747704694060,5.93824228,168.4,168.34,54.573972]
[1747704694061,19.83251925,168.38,168.34,54.573972]
[1747704694256,19.83251925,168.37,168.32,55.3]
[1747704694470,19.83251925,168.37,168.32,73.1]
[1747704694649,19.83251925,168.36,168.32,73.1]
[1747704694863,19.83251925,168.36,168.32,37.46]
[1747704695974,5.94000594,168.35,168.32,37.46]
[1747704697259,14.84484976,168.41,168.33,80.573972]
[1747704697556,5.9375371,168.42,168.33,82.082272]
[1747704697980,5.9375371,168.42,168.37,54.573972]
[1747704698275,5.93718458,168.43,168.38,17.8]
[1747704698656,5.93718458,168.43,168.39,54.573972]
[1747704698980,5.93647966,168.45,168.39,80.573972]
[1747704699885,5.93601929,168.47,168.39,80.573972]
[1747704700381,5.93601929,168.47,168.39,86.51249144]
[1747704701060,5.93601929,168.47,168.39,80.573972]
[1747704701480,40.60797582,168.47,168.39,80.573972]
[1747704701677,5.9326056,168.56,168.48,35.64]
[1747704701874,25.76512485,168.56,168.49,54.573972]
[1747704702060,5.9326056,168.56,168.49,54.573972]
[1747704702251,5.93190176,168.58,168.49,80.573972]
[1747704702450,5.93190176,168.58,168.49,44.933972]
[1747704702655,5.93190176,168.58,168.53,18.933972]
[1747704702855,5.9311981,168.6,168.56,0.28432314]
[1747704703390,1.5033,168.64,168.56,0.28432314]
[1747704703391,5.93079515,168.62,168.56,0.28432314]
[1747704704571,5.92979127,168.64,168.59,18.933972]
[1747704704890,40.58678869,168.64,168.59,0.28432314]
[1747704705085,19.83251925,168.62,168.57,26.0]
[1747704705255,40.58678869,168.64,168.58,18.933972]
[1747704705882,19.83251925,168.62,168.57,26.0]
[1747704706481,20.75796215,168.61,168.56,0.28432314]
[1747704706669,19.83251925,168.58,168.47,38.5917464]
[1747704706882,19.83251925,168.56,168.49,17.8]
[1747704707083,19.83251925,168.55,168.5,26.0]
[1747704707284,19.83251925,168.56,168.51,0.28432314]
[1747704707586,19.83251925,168.57,168.5,44.64964886]
[1747704707995,19.83251925,168.56,168.5,44.64964886]
[1747704708175,19.83251925,168.56,168.51,0.28432314]
[1747704708370,50.4121938,168.61,168.51,0.28432314]
[1747704708564,5.93295757,168.55,168.51,0.28432314]
[1747704710594,5.9326056,168.56,168.51,0.28432314]
[1747704712194,29.65423165,168.61,168.51,0.28432314]
[1747704712394,19.83251925,168.57,168.51,35.92432314]
[1747704713774,19.83251925,168.59,168.53,0.28432314]
[1747704714271,19.83251925,168.58,168.53,0.28432314]
[1747704714684,5.93225366,168.57,168.53,0.28432314]
[1747704717866,136.2,168.63,168.56,0.28432314]
[1747704717867,5.93154991,168.59,168.56,0.28432314]
[1747704720000,14.82553413,168.63,168.56,0.28432314]
[1747704720301,5.92943966,168.65,168.59,54.573972]
[1747704720669,5.9283851,168.68,168.63,26.0]
[1747704720874,5.9283851,168.68,168.64,18.64964886]
[1747704721202,5.9283851,168.68,168.65,0.28432314]
[1747704721374,5.92733092,168.71,168.65,0.28432314]
[1747704721574,5.92733092,168.71,168.68,18.933972]
[1747704722188,5.92627711,168.74,168.68,18.933972]
[1747704722373,20.74196989,168.74,168.68,18.933972]
[1747704722702,19.83251925,168.71,168.67,26.0]
[1747704722883,20.74196989,168.74,168.67,26.0]
[1747704723688,19.83251925,168.73,168.67,26.0]
[1747704723885,19.83251925,168.72,168.66,19.62]
[1747704724096,19.83251925,168.71,168.66,19.62]
[1747704724300,5.92768227,168.7,168.66,19.62]
[1747704724899,20.74688796,168.7,168.66,19.62]
[1747704725109,5.92768227,168.7,168.66,19.62]
[1747704725304,5.92697961,168.72,168.67,18.933972]
[1747704726388,40.57694788,168.72,168.66,19.62]
[1747704726907,5.92697961,168.72,168.67,18.933972]
[1747704728204,21.06647145,168.75,168.67,18.933972]
[1747704728390,5.92627711,168.74,168.7,18.933972]
[1747704729707,5.92627711,168.74,168.69,26.0]
[1747704730013,20.74196989,168.74,168.69,26.0]
[1747704730199,5.92487261,168.78,168.7,18.933972]
[1747704730403,19.83251925,168.76,168.7,18.933972]
[1747704731005,19.83251925,168.74,168.7,26.0]
[1747704731314,19.83251925,168.76,168.7,26.0]
[1747704732307,19.83251925,168.74,168.7,26.0]
[1747704732815,19.83251925,168.75,168.7,26.0]
[1747704733209,19.83251925,168.76,168.7,26.0]
[1747704733723,19.83251925,168.75,168.7,26.0]
[1747704734021,19.83251925,168.72,168.69,26.0]
[1747704734223,14.81342796,168.77,168.69,26.0]
[1747704734392,5.92627711,168.74,168.71,26.0]
[1747704736313,5.92557478,168.76,168.71,26.0]
[1747704736504,5.92557478,168.76,168.72,18.933972]
[1747704736897,5.92557478,168.76,168.72,36.713972]
[1747704737494,5.92487261,168.78,168.75,26.0]
[1747704737815,5.92487261,168.78,168.76,18.933972]
[1747704738123,5.92487261,168.78,168.75,26.0]
[1747704738325,5.92452159,168.79,168.75,26.0]
[1747704738994,19.83251925,168.78,168.76,26.0]
[1747704739516,20.73582557,168.79,168.76,26.0]
[1747704739721,19.83251925,168.78,168.76,26.0]
[1747704739911,19.83251925,168.77,168.72,43.78]
[1747704740422,20.73951173,168.76,168.72,43.78]
[1747704741317,40.57203098,168.76,168.72,43.78]
[1747704741705,20.73951173,168.76,168.72,43.78]
[1747704742532,40.57203098,168.76,168.72,17.78]
[1747704742735,19.83251925,168.74,168.67,35.64]
[1747704742912,19.83251925,168.73,168.66,36.42964886]
[1747704743095,19.83251925,168.74,168.67,26.0]
[1747704743296,6.5776,168.75,168.67,26.0]
[1747704743798,26.41011925,168.75,168.66,36.42964886]
[1747704744214,6.5776,168.75,168.66,36.42964886]
[1747704744421,20.74196989,168.74,168.67,26.0]
[1747704744723,20.74196989,168.74,168.68,18.64964886]
[1747704746022,40.57448914,168.74,168.68,18.64964886]
[1747704747036,19.83251925,168.73,168.66,17.78]
[1747704747324,20.74196989,168.74,168.66,17.78]
[1747704747525,19.83251925,168.73,168.66,17.78]
[1747704747898,20.74196989,168.74,168.67,18.64964886]
[1747704749718,20.74196989,168.74,168.69,26.0]
[1747704751731,14.81569278,168.74,168.69,26.0]
[1747704752329,5.92592592,168.75,168.69,26.0]
[1747704752831,5.92592592,168.75,168.7,18.64964886]
[1747704753205,5.92592592,168.75,168.71,0.14216157]
[1747704753515,5.92487261,168.78,168.73,26.0]
[1747704753717,14.8109312,168.8,168.73,26.0]
[1747704754243,14.8109312,168.8,168.74,18.64964886]
[1747704756249,5.92381967,168.81,168.77,26.0]
[1747704756738,5.92381967,168.81,168.78,56.14964886]
[1747704756941,5.92241634,168.85,168.81,26.0]
[1747704757310,5.92241634,168.85,168.82,18.64964886]
[1747704757509,14.8029183,168.89,168.82,18.64964886]
[1747704757510,34.63543755,168.89,168.82,18.64964886]
[1747704757730,5.92136428,168.88,168.82,18.64964886]
[1747704759514,25.75388353,168.88,168.82,18.64964886]
[1747704759836,40.55729423,168.88,168.82,0.14216157]
[1747704760135,40.55729423,168.88,168.8,54.43181043]
[1747704760433,20.72477498,168.88,168.81,0.14216157]
[1747704761520,40.55729423,168.88,168.81,0.14216157]
[1747704761910,20.72477498,168.88,168.81,0.14216157]
[1747704762107,40.55729423,168.88,168.81,0.14216157]
[1747704763240,19.83251925,168.87,168.81,0.14216157]
[1747704763815,5.92206561,168.86,168.81,0.14216157]
[1747704764546,5.92206561,168.86,168.83,0.28432314]
[1747704765216,19.83251925,168.87,168.83,0.28432314]
[1747704765640,12.33504227,168.87,168.83,0.28432314]
[1747704766439,5.92066311,168.9,168.83,0.28432314]
[1747704766747,5.92066311,168.9,168.85,54.573972]
[1747704767111,5.92031259,168.91,168.85,54.573972]
[1747704767334,12.33504227,168.9,168.85,54.573972]
[1747704767639,19.73492264,168.87,168.84,17.76]
[1747704767839,20.72109407,168.91,168.85,18.64964886]
[1747704768216,20.72109407,168.91,168.84,53.4]
[1747704768541,19.73492264,168.89,168.84,53.4]
[1747704769136,19.73492264,168.88,168.84,53.4]
[1747704769329,5.92171492,168.87,168.85,18.64964886]
[1747704770140,5.92171492,168.87,168.84,17.76]
[1747704770349,25.65663756,168.87,168.84,17.76]
[1747704770557,19.73492264,168.86,168.82,56.21181043]
[1747704770772,5.92171492,168.87,168.82,56.21181043]
[1747704770924,25.65663756,168.87,168.82,56.21181043]
[1747704772053,19.73492264,168.91,168.86,18.79181043]
[1747704772549,19.73492264,168.9,168.85,61.64]
[1747704772846,19.73492264,168.87,168.83,44.933972]
[1747704773228,19.73492264,168.88,168.83,80.573972]
[1747704773586,5.92171492,168.87,168.83,80.573972]
[1747704774257,25.65663756,168.87,168.83,80.573972]
[1747704774553,25.65663756,168.87,168.83,54.28964886]
[1747704775222,5.92171492,168.87,168.83,54.28964886]
[1747704776652,25.65663756,168.87,168.83,54.28964886]
[1747704777268,25.65663756,168.87,168.84,0.28432314]
[1747704777430,5.92171492,168.87,168.84,0.28432314]
[1747704777632,5.92101367,168.89,168.84,0.28432314]
[1747704777936,25.65593631,168.89,168.84,0.28432314]
[1747704778340,19.73492264,168.88,168.84,0.28432314]
[1747704779040,14.80132344,168.91,168.84,0.28432314]
[1747704779248,19.73492264,168.88,168.84,0.28432314]
[1747704780435,19.73492264,168.88,168.85,18.64964886]
[1747704780830,19.73492264,168.86,168.82,37.42]
[1747704781072,19.73492264,168.85,168.84,26.0]
[1747704782145,19.73492264,168.85,168.82,45.66]
[1747704782344,19.73492264,168.83,168.82,45.66]
[1747704782553,19.73492264,168.84,168.82,45.66]
[1747704782858,5.92311792,168.83,168.82,45.66]
[1747704783735,25.65804056,168.83,168.82,26.0]
[1747704783935,25.65804056,168.83,168.8,43.76]
[1747704784252,19.73492264,168.82,168.8,43.76]
[1747704784861,5.92381967,168.81,168.8,43.76]
[1747704786261,25.65874231,168.81,168.77,19.66]
[1747704786446,19.73492264,168.78,168.77,19.66]
[1747704786840,19.73492264,168.79,168.77,19.66]
[1747704787159,19.73492264,168.8,168.77,19.66]
[1747704787865,12.34497786,168.79,168.77,19.66]
[1747704788769,21.44787041,168.85,168.77,19.66]
[1747704788939,12.34497786,168.81,168.77,19.66]
[1747704789341,12.34497786,168.78,168.77,19.66]
[1747704789763,20.7296849,168.84,168.77,26.0]
[1747704789942,20.7296849,168.84,168.75,53.54216157]
[1747704789943,5.9224463,168.85,168.82,26.0]
[1747704791071,18.26742416,168.85,168.82,26.0]
[1747704791274,6.0007,168.89,168.84,26.0]
[1747704791572,12.34497786,168.89,168.84,26.0]
[1747704791770,12.34497786,168.87,168.84,26.0]
[1747704792067,5.92066311,168.9,168.85,54.573972]
[1747704792239,5.91996211,168.92,168.88,26.0]
[1747704792446,12.34497786,168.91,168.88,26.0]
[1747704793674,5.91996211,168.92,168.88,26.0]
[1747704794172,25.64650939,168.92,168.88,26.0]
[1747704794377,5.91891092,168.95,168.92,26.0]
[1747704794556,19.72654728,168.94,168.92,26.0]
[1747704795164,5.91891092,168.95,168.92,26.0]
[1747704795578,25.6454582,168.95,168.92,26.0]
[1747704795872,19.72654728,168.94,168.92,26.0]
[1747704796170,5.91891092,168.95,168.91,26.0]
[1747704796375,19.72654728,168.93,168.91,26.0]
[1747704796573,5.91996211,168.92,168.91,26.0]
[1747704797283,21.11327357,168.97,168.91,26.0]
[1747704797580,19.72654728,168.95,168.91,26.0]
[1747704797778,5.9185606,168.96,168.91,26.0]
[1747704797993,25.64510788,168.96,168.91,26.0]
[1747704798148,19.72654728,168.95,168.91,26.0]
[1747704798768,14.79597357,168.97,168.91,26.0]
[1747704798769,5.9185606,168.96,168.91,26.0]
[1747704798976,25.64510788,168.96,168.91,26.0]
[1747704799956,5.9185606,168.96,168.91,26.0]
[1747704800163,25.64510788,168.96,168.91,26.0]
[1747704800656,19.72654728,168.95,168.91,26.0]
[1747704800867,5.91926127,168.94,168.91,26.0]
[1747704801369,19.72654728,168.99,168.93,26.0]
[1747704801565,19.72654728,168.99,168.94,17.76]
[1747704801858,19.72654728,168.98,168.94,17.76]
[1747704802673,5.9172131,169.0,168.96,26.0]
[1747704802981,25.64230686,169.04,169.0,26.0]
[1747704803187,5.91575958,169.04,169.0,26.0]
[1747704803559,25.64230686,169.04,169.0,43.76]
[1747704803960,5.91575958,169.04,169.0,43.76]
[1747704804175,5.91575958,169.04,169.01,0.28432314]
[1747704804375,25.64230686,169.04,169.0,43.76]
[1747704804585,5.91575958,169.04,169.0,43.76]
[1747704805180,19.72654728,169.12,169.0,43.76]
[1747704805181,6.6659,169.13,169.05,26.0]
[1747704805572,19.72654728,169.11,169.06,17.74]
[1747704805773,19.72654728,169.1,169.06,17.74]
[1747704806182,6.6659,169.13,169.06,17.74]
[1747704806370,19.72654728,169.11,169.06,17.74]
[1747704806681,6.4977,169.17,169.06,17.74]
[1747704806982,19.72654728,169.12,169.06,17.74]
[1747704807366,20.69047055,169.16,169.07,18.933972]
[1747704807562,19.72654728,169.13,169.07,18.933972]
[1747704807964,19.72654728,169.12,169.07,0.28432314]
[1747704808187,19.72654728,169.12,168.97,1.508]
[1747704808188,19.72654728,169.08,168.97,1.508]
[1747704808363,19.72654728,169.05,168.98,55.96964886]
[1747704808569,123.54610071,169.16,168.98,55.96964886]
[1747704808885,5.91540964,169.05,168.99,0.28432314]
[1747704809185,5.91540964,169.05,169.01,26.0]
[1747704810887,19.72654728,169.04,169.01,26.0]
[1747704811093,19.72654728,169.05,169.01,26.0]
[1747704811693,19.72654728,169.04,169.01,26.0]
[1747704811892,6.0634,169.08,168.98,55.96964886]
[1747704812075,19.72654728,169.03,168.99,17.74]
[1747704812280,19.72654728,169.03,169.0,26.0]
[1747704812594,19.72654728,169.03,169.01,26.0]
[1747704812894,19.72654728,169.04,169.01,26.0]
[1747704813189,5.91610956,169.03,169.01,26.0]
[1747704813998,5.91366055,169.1,169.02,80.443972]
[1747704814168,20.69207792,169.15,169.02,80.443972]
[1747704814374,20.69207792,169.15,169.08,0.28432314]
[1747704814605,20.69207792,169.15,169.12,26.0]
[1747704814606,5.9119125,169.15,169.12,26.0]
[1747704814775,25.63706208,169.19,169.13,44.933972]
[1747704815176,19.72654728,169.18,169.13,44.933972]
[1747704815702,5.9105148,169.19,169.13,80.443972]
[1747704816384,5.9105148,169.19,169.13,83.38383182]
[1747704816699,5.9105148,169.19,169.13,29.22418296]
[1747704816903,19.72654728,169.15,169.12,26.0]
[1747704817201,19.72654728,169.13,169.11,63.32]
[1747704817377,19.72654728,169.12,169.11,63.32]
[1747704817585,20.6929171,169.14,169.05,37.32]
[1747704817784,19.72654728,169.1,169.05,72.83]
[1747704817982,19.72654728,169.08,169.05,72.83]
[1747704818177,19.72654728,169.09,169.05,72.83]
[1747704818687,19.72654728,169.09,169.08,26.0]
[1747704819091,25.64055757,169.09,169.08,26.0]
[1747704819285,5.91401029,169.09,169.08,26.0]
[1747704819891,25.64055757,169.09,169.08,26.0]
[1747704820498,5.91331086,169.11,169.08,26.0]
[1747704821006,25.63985814,169.11,169.08,26.0]
[1747704821696,5.91331086,169.11,169.09,0.14216157]
[1747704821880,14.77924907,169.16,169.11,26.0]
[1747704821881,19.72654728,169.12,169.11,26.0]
[1747704822075,5.9119125,169.15,169.14,26.0]
[1747704822389,5.9119125,169.15,169.14,26.28432314]
[1747704823107,5.9119125,169.15,169.12,35.51]
[1747704823108,25.63776085,169.17,169.11,37.32]
[1747704823401,19.72654728,169.15,169.12,26.0]
[1747704823801,5.91121357,169.17,169.12,26.0]
[1747704823988,19.72654728,169.16,169.12,26.0]
[1747704824184,19.72654728,169.14,169.12,26.0]
[1747704824376,19.72654728,169.13,169.12,26.0]
[1747704824580,19.72654728,169.13,169.09,17.72]
[1747704824778,19.72654728,169.11,169.09,17.72]
[1747704825015,19.72654728,169.12,169.09,17.72]
[1747704825184,5.91331086,169.11,169.09,17.72]
[1747704826192,5.91226203,169.14,169.12,26.0]
[1747704827286,19.72654728,169.2,169.12,26.0]
[1747704827477,19.72654728,169.15,169.12,26.0]
[1747704827677,19.72654728,169.16,169.12,26.0]
[1747704828108,19.72654728,169.15,169.12,26.0]
[1747704828705,19.72654728,169.14,169.12,26.0]
[1747704829209,25.63915888,169.13,169.06,35.51]
[1747704829384,19.72654728,169.1,169.06,72.79]
[1747704829582,19.72654728,169.1,169.09,26.0]
[1747704829787,19.72654728,169.11,169.09,26.0]
[1747704830709,20.6941406,169.13,169.09,26.0]
[1747704831006,19.72654728,169.11,169.09,26.0]
[1747704831707,5.91366055,169.1,169.09,26.0]
[1747704832807,5.91331086,169.11,169.09,26.0]
[1747704833711,25.63985814,169.11,169.09,26.0]
[1747704835508,5.91331086,169.11,169.09,26.0]
[1747704835915,25.63985814,169.11,169.09,26.0]
[1747704837014,19.72654728,169.1,169.09,26.0]
[1747704837420,25.64020783,169.1,169.09,26.0]
[1747704838204,5.91366055,169.1,169.09,26.0]
[1747704838619,25.64020783,169.1,169.09,26.0]
[1747704838812,40.42435921,169.1,169.06,37.56432314]
[1747704839026,40.42435921,169.1,169.07,26.0]
[1747704841227,19.72654728,169.09,169.08,26.0]
[1747704841394,20.70026022,169.08,169.0,35.51]
[1747704841597,19.72654728,169.05,169.02,37.34]
[1747704841799,12.30839852,169.04,169.02,63.34]
[1747704841999,12.30839852,169.04,169.02,37.34]
[1747704842507,12.30839852,169.03,169.01,3.28300934]
[1747704842704,12.30839852,169.02,169.01,3.28300934]
[1747704843496,12.30839852,169.02,168.97,19.62]
[1747704843497,18.22485811,169.02,168.97,19.62]
[1747704843697,19.70844595,168.98,168.97,19.62]
[1747704844198,19.70844595,169.04,169.0,26.0]
[1747704844199,5.91575958,169.04,169.0,26.0]
[1747704844523,19.70844595,169.03,169.0,26.0]
[1747704844696,19.70844595,169.02,168.98,0.28432314]
[1747704845309,6.3714,169.08,169.01,0.28432314]
[1747704845534,19.70844595,169.07,169.02,17.74]
[1747704845930,19.70844595,169.04,169.02,17.74]
[1747704846118,19.70844595,169.03,169.02,17.74]
[1747704846321,19.70844595,169.05,169.02,17.74]
[1747704846722,20.69903601,169.09,169.02,17.74]
[1747704846914,19.70844595,169.05,169.02,17.74]
[1747704847113,19.70844595,169.07,169.02,17.74]
[1747704847333,5.91401029,169.09,169.03,0.28432314]
[1747704847634,19.70844595,169.07,169.03,0.28432314]
[1747704847818,19.70844595,169.06,169.04,3.29343304]
[1747704848338,19.70844595,169.07,169.04,3.29343304]
[1747704849139,19.70844595,169.06,169.04,3.29343304]
[1747704849337,19.70844595,169.07,169.03,19.64]
[1747704849530,19.70844595,169.08,169.03,19.64]
[1747704849939,19.70844595,169.07,169.03,19.64]
[1747704850333,5.91401029,169.09,169.03,19.64]
[1747704850533,19.70844595,169.07,169.03,19.64]
[1747704851726,25.62347483,169.07,169.03,19.64]
[1747704851927,19.70844595,169.07,169.03,19.64]
[1747704852315,25.62326255,169.07,169.03,19.64]
[1747704852642,25.62326255,169.07,169.04,35.51]
[1747704853029,19.70844595,169.07,169.04,35.51]
[1747704854019,25.6232487,169.07,169.04,35.51]
[1747704855225,5.91401029,169.09,169.04,35.51]
[1747704855413,25.62245624,169.09,169.04,35.51]
[1747704856021,5.91401029,169.09,169.05,0.28432314]
[1747704856347,25.62177552,169.11,169.07,61.51]
[1747704857527,5.91332957,169.11,169.08,53.25]
[1747704858447,19.70844595,169.1,169.08,53.25]
[1747704859835,19.70844595,169.09,169.07,26.0]
[1747704860140,19.70844595,169.09,169.07,43.74]
[1747704860647,25.62276867,169.09,169.07,43.74]
[1747704863057,16.34424561,169.15,169.07,79.25]
[1747704863354,19.70844595,169.12,169.07,79.25]
[1747704864236,5.91331086,169.11,169.07,79.25]
[1747704864827,25.62135526,169.13,169.08,0.28432314]
[1747704865647,18.20991003,169.13,169.08,0.28432314]
[1747704867042,12.29700072,169.12,169.08,0.28432314]
[1747704867235,5.91290931,169.13,169.07,79.25]
[1747704867544,12.29700072,169.12,169.08,0.28432314]
[1747704868155,18.20991003,169.13,169.08,0.28432314]
[1747704869136,12.29700072,169.13,169.08,0.28432314]
[1747704870254,12.29700072,169.11,169.07,160.15]
[1747704870742,12.29700072,169.12,169.07,160.15]
[1747704871176,5.9119125,169.15,169.07,160.15]
[1747704871345,5.9119125,169.15,169.08,0.28432314]
[1747704871632,5.9119125,169.15,169.12,35.51]
[1747704871633,18.20891322,169.15,169.12,35.51]
[1747704872157,5.9119125,169.15,169.13,17.72]
[1747704872641,18.2084841,169.17,169.14,26.0]
[1747704873043,18.2084841,169.17,169.15,35.51]
[1747704874665,12.29700072,169.17,169.15,35.51]
[1747704875234,12.29700072,169.16,169.15,35.51]
[1747704876258,12.29700072,169.16,169.14,35.51]
[1747704876758,5.9119125,169.15,169.14,35.51]
[1747704877863,5.91086416,169.18,169.14,35.51]
[1747704878031,12.29700072,169.16,169.14,35.51]
[1747704878865,5.9105148,169.19,169.14,35.51]
[1747704879166,12.29700072,169.2,169.16,0.28432314]
[1747704879654,12.29700072,169.17,169.15,35.51]
[1747704879859,12.29700072,169.16,169.15,17.72]
[1747704880560,18.41390072,169.16,169.13,19.56]
[1747704880764,18.20926275,169.14,169.1,17.72]
[1747704880966,12.29700072,169.11,169.1,17.72]
[1747704881664,5.91226203,169.14,169.1,17.72]
[1747704881962,12.29700072,169.11,169.1,17.72]
[1747704882876,18.21031158,169.11,169.1,17.72]
[1747704883173,18.21031158,169.11,169.1,53.23]
[1747704883377,12.29700072,169.11,169.1,53.23]
[1747704883875,18.21031158,169.11,169.1,17.72]
[1747704884756,18.21031158,169.11,169.08,19.56]
[1747704885074,12.29700072,169.09,169.08,19.56]
[1747704886061,18.21101101,169.09,169.08,19.56]
[1747704886478,32.99603673,169.09,169.03,55.07]
[1747704886771,12.29700072,169.04,169.03,19.56]
[1747704887175,24.59400144,169.04,168.98,27.88279707]
[1747704887363,12.29700072,168.99,168.98,27.88279707]
[1747704887858,12.29700072,168.99,168.98,8.32279707]
[1747704888281,18.21451063,168.99,168.98,8.32279707]
[1747704888664,18.21451063,168.99,168.94,35.51]
[1747704888851,5.91750991,168.99,168.94,35.51]
[1747704889055,12.29700072,168.97,168.94,61.51]
[1747704889381,12.29700072,168.96,168.94,61.51]
[1747704889564,11.97013767,169.0,168.94,61.51]
[1747704889756,12.29700072,168.95,168.94,61.51]
[1747704890088,5.91723767,169.0,168.94,61.51]
[1747704890280,12.29700072,168.99,168.97,61.51]
[1747704890478,12.29700072,169.01,168.98,0.28432314]
[1747704890668,12.29700072,169.02,168.99,53.25]
[1747704890871,12.29700072,169.01,168.99,53.25]
[1747704891378,12.29700072,169.02,168.99,53.25]
[1747704891564,12.29700072,169.01,168.99,53.25]
[1747704892263,12.29700072,169.0,168.98,35.51]
[1747704892575,12.29700072,169.0,168.98,17.74]
[1747704892884,18.21417627,169.0,168.98,17.74]
[1747704893270,12.29700072,169.0,168.98,17.74]
[1747704893457,12.29700072,169.01,169.0,26.0]
[1747704893659,12.29700072,169.02,169.0,26.0]
[1747704894284,18.21381037,169.01,168.98,17.74]
[1747704894486,12.29700072,169.0,168.95,38.53386787]
[1747704894690,12.29700072,168.98,168.96,17.74]
[1747704895665,12.29700072,168.97,168.95,17.74]
[1747704895859,6.3161,169.0,168.95,17.74]
[1747704895860,12.29700072,168.96,168.95,17.74]
[1747704896583,18.21556132,168.96,168.95,17.74]
[1747704897282,12.29700072,168.96,168.95,17.74]
[1747704897902,18.21556132,168.96,168.95,17.74]
[1747704898467,5.91815306,168.98,168.95,17.74]
[1747704898709,12.29700072,168.97,168.95,17.74]
[1747704899079,27.08660263,169.04,168.95,17.74]
[1747704899414,12.29700072,169.02,168.96,0.28432314]
[1747704899766,12.29700072,169.01,168.96,0.28432314]
[1747704899969,12.29700072,169.0,168.96,0.28432314]
[1747704900167,12.29700072,169.04,168.99,0.28432314]
[1747704900416,6.217,169.1,169.02,61.79432314]
[1747704900574,18.21126658,169.09,169.04,0.28432314]
[1747704900775,12.29700072,169.07,169.03,17.74]
[1747704900990,12.29700072,169.04,169.03,17.74]
[1747704901190,12.29700072,169.04,168.96,0.28432314]
[1747704901377,1.5702,169.02,168.97,17.74]
[1747704901586,12.29700072,168.98,168.97,17.74]